Workbook

Sheet joint
A1: TM1 | B1: 5 | C1: 6 | D1: 7 | E1: 8 | F1: 9 | G1: 10 | H1: 11 | I1: 12 | J1: 13 | K1: 14 | L1: 15 | M1: 16 | N1: 17 | O1: 18 | P1: 19 | Q1: 20 | R1: 21 | S1: 22 | T1: 23 | U1: Total
A2: 5 | B2: 43 | C2: 19 | D2: 65 | E2: 0 | F2: 0 | G2: 0 | H2: 0 | I2: 0 | J2: 0 | K2: 0 | L2: 0 | M2: 0 | N2: 0 | O2: 0 | P2: 0 | Q2: 0 | R2: 0 | S2: 0 | T2: 0 | U2: =SUM(B2:T2) -> 127
A3: 6 | B3: 0 | C3: 290 | D3: 81 | E3: 6 | F3: 1 | G3: 0 | H3: 0 | I3: 0 | J3: 0 | K3: 0 | L3: 0 | M3: 0 | N3: 0 | O3: 0 | P3: 0 | Q3: 0 | R3: 0 | S3: 0 | T3: 0 | U3: =SUM(B3:T3) -> 378
A4: 7 | B4: 0 | C4: 0 | D4: 1274 | E4: 4 | F4: 1 | G4: 0 | H4: 0 | I4: 0 | J4: 0 | K4: 0 | L4: 0 | M4: 0 | N4: 0 | O4: 0 | P4: 0 | Q4: 0 | R4: 0 | S4: 0 | T4: 0 | U4: 1,279
A5: 8 | B5: 0 | C5: 0 | D5: 0 | E5: 2470 | F5: 24 | G5: 59 | H5: 11 | I5: 1 | J5: 13 | K5: 17 | L5: 7 | M5: 13 | N5: 6 | O5: 4 | P5: 0 | Q5: 0 | R5: 1 | S5: 0 | T5: 0 | U5: 2,626
A6: 9 | B6: 0 | C6: 0 | D6: 0 | E6: 0 | F6: 382 | G6: 111 | H6: 258 | I6: 160 | J6: 327 | K6: 324 | L6: 225 | M6: 240 | N6: 85 | O6: 55 | P6: 11 | Q6: 8 | R6: 11 | S6: 4 | T6: 0 | U6: 2,201
A7: 10 | B7: 0 | C7: 0 | D7: 0 | E7: 0 | F7: 0 | G7: 74 | H7: 30 | I7: 125 | J7: 424 | K7: 240 | L7: 176 | M7: 195 | N7: 60 | O7: 32 | P7: 1 | Q7: 6 | R7: 10 | S7: 2 | T7: 3 | U7: 1,378
A8: 11 | B8: 0 | C8: 0 | D8: 0 | E8: 0 | F8: 0 | G8: 0 | H8: 42 | I8: 22 | J8: 388 | K8: 430 | L8: 171 | M8: 188 | N8: 64 | O8: 41 | P8: 2 | Q8: 4 | R8: 7 | S8: 2 | T8: 1 | U8: 1,362
A9: 12 | B9: 0 | C9: 0 | D9: 0 | E9: 0 | F9: 0 | G9: 0 | H9: 0 | I9: 32 | J9: 62 | K9: 498 | L9: 302 | M9: 191 | N9: 72 | O9: 38 | P9: 6 | Q9: 11 | R9: 7 | S9: 3 | T9: 1 | U9: 1,223
A10: 13 | B10: 0 | C10: 0 | D10: 0 | E10: 0 | F10: 0 | G10: 0 | H10: 0 | I10: 0 | J10: 45 | K10: 31 | L10: 118 | M10: 154 | N10: 27 | O10: 23 | P10: 3 | Q10: 5 | R10: 6 | S10: 1 | T10: 0 | U10: 413
A11: 14 | B11: 0 | C11: 0 | D11: 0 | E11: 0 | F11: 0 | G11: 0 | H11: 0 | I11: 0 | J11: 0 | K11: 74 | L11: 45 | M11: 385 | N11: 168 | O11: 43 | P11: 4 | Q11: 5 | R11: 8 | S11: 0 | T11: 0 | U11: 732
A12: 15 | B12: 0 | C12: 0 | D12: 0 | E12: 0 | F12: 0 | G12: 0 | H12: 0 | I12: 0 | J12: 0 | K12: 0 | L12: 271 | M12: 236 | N12: 819 | O12: 492 | P12: 45 | Q12: 53 | R12: 37 | S12: 10 | T12: 4 | U12: 1,967
A13: 16 | B13: 0 | C13: 0 | D13: 0 | E13: 0 | F13: 0 | G13: 0 | H13: 0 | I13: 0 | J13: 0 | K13: 0 | L13: 0 | M13: 157 | N13: 69 | O13: 313 | P13: 51 | Q13: 30 | R13: 32 | S13: 6 | T13: 3 | U13: 661
A14: 17 | B14: 0 | C14: 0 | D14: 0 | E14: 0 | F14: 0 | G14: 0 | H14: 0 | I14: 0 | J14: 0 | K14: 0 | L14: 0 | M14: 0 | N14: 252 | O14: 140 | P14: 226 | Q14: 263 | R14: 163 | S14: 43 | T14: 18 | U14: 1,105
A15: 18 | B15: 0 | C15: 0 | D15: 0 | E15: 0 | F15: 0 | G15: 0 | H15: 0 | I15: 0 | J15: 0 | K15: 0 | L15: 0 | M15: 0 | N15: 0 | O15: 410 | P15: 67 | Q15: 692 | R15: 804 | S15: 86 | T15: 59 | U15: 2,118
A16: 19 | B16: 0 | C16: 0 | D16: 0 | E16: 0 | F16: 0 | G16: 0 | H16: 0 | I16: 0 | J16: 0 | K16: 0 | L16: 0 | M16: 0 | N16: 0 | O16: 0 | P16: 40 | Q16: 49 | R16: 496 | S16: 121 | T16: 22 | U16: 728
A17: 20 | B17: 0 | C17: 0 | D17: 0 | E17: 0 | F17: 0 | G17: 0 | H17: 0 | I17: 0 | J17: 0 | K17: 0 | L17: 0 | M17: 0 | N17: 0 | O17: 0 | P17: 0 | Q17: 77 | R17: 83 | S17: 200 | T17: 126 | U17: 486
A18: 21 | B18: 0 | C18: 0 | D18: 0 | E18: 0 | F18: 0 | G18: 0 | H18: 0 | I18: 0 | J18: 0 | K18: 0 | L18: 0 | M18: 0 | N18: 0 | O18: 0 | P18: 0 | Q18: 0 | R18: 181 | S18: 38 | T18: 284 | U18: 503
A19: 22 | B19: 0 | C19: 0 | D19: 0 | E19: 0 | F19: 0 | G19: 0 | H19: 0 | I19: 0 | J19: 0 | K19: 0 | L19: 0 | M19: 0 | N19: 0 | O19: 0 | P19: 0 | Q19: 0 | R19: 0 | S19: 33 | T19: 21 | U19: 54
A20: 23 | B20: 0 | C20: 0 | D20: 0 | E20: 0 | F20: 0 | G20: 0 | H20: 0 | I20: 0 | J20: 0 | K20: 0 | L20: 0 | M20: 0 | N20: 0 | O20: 0 | P20: 0 | Q20: 0 | R20: 0 | S20: 0 | T20: 33 | U20: 33
A21: Total | B21: =SUM(B2:B20) -> 43 | C21: =SUM(C2:C20) -> 309 | D21: 1,420 | E21: 2,480 | F21: 408 | G21: 244 | H21: 341 | I21: 340 | J21: 1,259 | K21: 1,614 | L21: 1,315 | M21: 1,759 | N21: 1,622 | O21: 1,591 | P21: 456 | Q21: 1,203 | R21: 1,846 | S21: 549 | T21: 575 | U21: 19,374
A22: ASIM | B22: 5 | C22: 6 | D22: 7 | E22: 8 | F22: 9 | G22: 10 | H22: 11 | I22: 12 | J22: 13 | K22: 14 | L22: 15 | M22: 16 | N22: 17 | O22: 18 | P22: 19 | Q22: 20 | R22: 21 | S22: 22 | T22: 23
A23: 5 | B23: 27 | C23: 4 | D23: 23 | E23: 0 | F23: 0 | G23: 0 | H23: 0 | I23: 0 | J23: 0 | K23: 0 | L23: 0 | M23: 0 | N23: 0 | O23: 0 | P23: 0 | Q23: 0 | R23: 0 | S23: 0 | T23: 0 | U23: 54
A24: 6 | B24: 0 | C24: 192 | D24: 49 | E24: 3 | F24: 0 | G24: 0 | H24: 0 | I24: 0 | J24: 0 | K24: 0 | L24: 0 | M24: 0 | N24: 0 | O24: 0 | P24: 0 | Q24: 0 | R24: 0 | S24: 0 | T24: 0 | U24: 244
A25: 7 | B25: 0 | C25: 0 | D25: 744 | E25: 3 | F25: 1 | G25: 0 | H25: 0 | I25: 0 | J25: 0 | K25: 0 | L25: 0 | M25: 2 | N25: 1 | O25: 0 | P25: 0 | Q25: 0 | R25: 0 | S25: 0 | T25: 0 | U25: 751
A26: 8 | B26: 0 | C26: 0 | D26: 0 | E26: 1997 | F26: 16 | G26: 47 | H26: 12 | I26: 5 | J26: 17 | K26: 18 | L26: 10 | M26: 9 | N26: 5 | O26: 4 | P26: 0 | Q26: 1 | R26: 0 | S26: 0 | T26: 0 | U26: 2,141
A27: 9 | B27: 0 | C27: 0 | D27: 0 | E27: 0 | F27: 343 | G27: 90 | H27: 271 | I27: 173 | J27: 350 | K27: 340 | L27: 216 | M27: 237 | N27: 97 | O27: 46 | P27: 10 | Q27: 5 | R27: 13 | S27: 0 | T27: 0 | U27: 2,191
A28: 10 | B28: 0 | C28: 0 | D28: 0 | E28: 0 | F28: 0 | G28: 68 | H28: 27 | I28: 148 | J28: 443 | K28: 259 | L28: 203 | M28: 170 | N28: 62 | O28: 43 | P28: 2 | Q28: 4 | R28: 12 | S28: 1 | T28: 2 | U28: 1,444 | X28: Period | Y28: Start Hour | Z28: End Hour
A29: 11 | B29: 0 | C29: 0 | D29: 0 | E29: 0 | F29: 0 | G29: 0 | H29: 40 | I29: 21 | J29: 497 | K29: 484 | L29: 193 | M29: 214 | N29: 55 | O29: 45 | P29: 4 | Q29: 9 | R29: 9 | S29: 0 | T29: 2 | U29: 1,573 | X29: 5 | Y29: 5 | Z29: 6
A30: 12 | B30: 0 | C30: 0 | D30: 0 | E30: 0 | F30: 0 | G30: 0 | H30: 0 | I30: 18 | J30: 55 | K30: 523 | L30: 399 | M30: 223 | N30: 92 | O30: 43 | P30: 6 | Q30: 6 | R30: 3 | S30: 1 | T30: 0 | U30: 1,369 | X30: 6 | Y30: 6 | Z30: 7
A31: 13 | B31: 0 | C31: 0 | D31: 0 | E31: 0 | F31: 0 | G31: 0 | H31: 0 | I31: 0 | J31: 45 | K31: 27 | L31: 149 | M31: 165 | N31: 23 | O31: 16 | P31: 2 | Q31: 0 | R31: 2 | S31: 1 | T31: 3 | U31: 433 | X31: 7 | Y31: 7 | Z31: 8
A32: 14 | B32: 0 | C32: 0 | D32: 0 | E32: 0 | F32: 0 | G32: 0 | H32: 0 | I32: 0 | J32: 0 | K32: 92 | L32: 46 | M32: 383 | N32: 150 | O32: 59 | P32: 7 | Q32: 12 | R32: 10 | S32: 2 | T32: 3 | U32: 764 | X32: 8 | Y32: 8 | Z32: 9
A33: 15 | B33: 0 | C33: 0 | D33: 0 | E33: 0 | F33: 0 | G33: 0 | H33: 0 | I33: 0 | J33: 0 | K33: 0 | L33: 261 | M33: 239 | N33: 852 | O33: 489 | P33: 32 | Q33: 44 | R33: 62 | S33: 10 | T33: 7 | U33: 1,996 | X33: 9 | Y33: 9 | Z33: 10
A34: 16 | B34: 0 | C34: 0 | D34: 0 | E34: 0 | F34: 0 | G34: 0 | H34: 0 | I34: 0 | J34: 0 | K34: 0 | L34: 0 | M34: 154 | N34: 33 | O34: 257 | P34: 46 | Q34: 29 | R34: 29 | S34: 1 | T34: 7 | U34: 556 | X34: 10 | Y34: 10 | Z34: 11
A35: 17 | B35: 0 | C35: 0 | D35: 0 | E35: 0 | F35: 0 | G35: 0 | H35: 0 | I35: 0 | J35: 0 | K35: 0 | L35: 0 | M35: 0 | N35: 236 | O35: 122 | P35: 188 | Q35: 200 | R35: 128 | S35: 33 | T35: 20 | U35: 927 | X35: 11 | Y35: 11 | Z35: 12
A36: 18 | B36: 0 | C36: 0 | D36: 0 | E36: 0 | F36: 0 | G36: 0 | H36: 0 | I36: 0 | J36: 0 | K36: 0 | L36: 0 | M36: 0 | N36: 0 | O36: 372 | P36: 47 | Q36: 622 | R36: 630 | S36: 67 | T36: 87 | U36: 1,825 | X36: 12 | Y36: 12 | Z36: 13
A37: 19 | B37: 0 | C37: 0 | D37: 0 | E37: 0 | F37: 0 | G37: 0 | H37: 0 | I37: 0 | J37: 0 | K37: 0 | L37: 0 | M37: 0 | N37: 0 | O37: 0 | P37: 33 | Q37: 31 | R37: 391 | S37: 79 | T37: 43 | U37: 577 | X37: 13 | Y37: 13 | Z37: 14
A38: 20 | B38: 0 | C38: 0 | D38: 0 | E38: 0 | F38: 0 | G38: 0 | H38: 0 | I38: 0 | J38: 0 | K38: 0 | L38: 0 | M38: 0 | N38: 0 | O38: 0 | P38: 0 | Q38: 73 | R38: 74 | S38: 156 | T38: 152 | U38: 455 | X38: 14 | Y38: 14 | Z38: 15
A39: 21 | B39: 0 | C39: 0 | D39: 0 | E39: 0 | F39: 0 | G39: 0 | H39: 0 | I39: 0 | J39: 0 | K39: 0 | L39: 0 | M39: 0 | N39: 0 | O39: 0 | P39: 0 | Q39: 0 | R39: 183 | S39: 25 | T39: 354 | U39: 562 | X39: 15 | Y39: 15 | Z39: 16
A40: 22 | B40: 0 | C40: 0 | D40: 0 | E40: 0 | F40: 0 | G40: 0 | H40: 0 | I40: 0 | J40: 0 | K40: 0 | L40: 0 | M40: 0 | N40: 0 | O40: 0 | P40: 0 | Q40: 0 | R40: 0 | S40: 24 | T40: 21 | U40: 45 | X40: 16 | Y40: 16 | Z40: 17
A41: 23 | B41: 0 | C41: 0 | D41: 0 | E41: 0 | F41: 0 | G41: 0 | H41: 0 | I41: 0 | J41: 0 | K41: 0 | L41: 0 | M41: 0 | N41: 0 | O41: 0 | P41: 0 | Q41: 0 | R41: 0 | S41: 0 | T41: 35 | U41: 35 | X41: 17 | Y41: 17 | Z41: 18
A42: Total | B42: =SUM(B23:B41) -> 27 | C42: =SUM(C23:C41) -> 196 | D42: =SUM(D23:D41) -> 816 | E42: =SUM(E23:E41) -> 2,003 | F42: =SUM(F23:F41) -> 360 | G42: =SUM(G23:G41) -> 205 | H42: =SUM(H23:H41) -> 350 | I42: =SUM(I23:I41) -> 365 | J42: =SUM(J23:J41) -> 1,407 | K42: =SUM(K23:K41) -> 1,743 | L42: =SUM(L23:L41) -> 1,477 | M42: =SUM(M23:M41) -> 1,796 | N42: =SUM(N23:N41) -> 1,606 | O42: =SUM(O23:O41) -> 1,496 | P42: =SUM(P23:P41) -> 377 | Q42: =SUM(Q23:Q41) -> 1,036 | R42: =SUM(R23:R41) -> 1,546 | S42: =SUM(S23:S41) -> 400 | T42: =SUM(T23:T41) -> 736 | U42: 17,942 | X42: 18 | Y42: 18 | Z42: 19
A43: DIFF | B43: =B22 -> 5 | C43: =C22 -> 6 | D43: 7 | E43: 8 | F43: 9 | G43: 10 | H43: 11 | I43: 12 | J43: 13 | K43: 14 | L43: 15 | M43: 16 | N43: 17 | O43: 18 | P43: 19 | Q43: 20 | R43: 21 | S43: 22 | T43: 23 | X43: 19 | Y43: 19 | Z43: 20
A44: =A23 -> 5 | B44: =B2-B23 -> 16 | C44: =C2-C23 -> 15 | D44: 42 | E44: 0 | F44: 0 | G44: 0 | H44: 0 | I44: 0 | J44: 0 | K44: 0 | L44: 0 | M44: 0 | N44: 0 | O44: 0 | P44: 0 | Q44: 0 | R44: 0 | S44: 0 | T44: 0 | U44: 73 | X44: 20 | Y44: 20 | Z44: 21
A45: =A24 -> 6 | B45: =B3-B24 -> 0 | C45: 98 | D45: 32 | E45: 3 | F45: 1 | G45: 0 | H45: 0 | I45: 0 | J45: 0 | K45: 0 | L45: 0 | M45: 0 | N45: 0 | O45: 0 | P45: 0 | Q45: 0 | R45: 0 | S45: 0 | T45: 0 | U45: 134 | X45: 21 | Y45: 21 | Z45: 22
A46: 7 | B46: =B4-B25 -> 0 | C46: 0 | D46: 530 | E46: 1 | F46: 0 | G46: 0 | H46: 0 | I46: 0 | J46: 0 | K46: 0 | L46: 0 | M46: (2) | N46: (1) | O46: 0 | P46: 0 | Q46: 0 | R46: 0 | S46: 0 | T46: 0 | U46: 528 | X46: 22 | Y46: 22 | Z46: 23
A47: 8 | B47: =B5-B26 -> 0 | C47: 0 | D47: 0 | E47: 473 | F47: 8 | G47: 12 | H47: (1) | I47: (4) | J47: (4) | K47: (1) | L47: (3) | M47: 4 | N47: 1 | O47: 0 | P47: 0 | Q47: (1) | R47: 1 | S47: 0 | T47: 0 | U47: 485 | X47: 23 | Y47: 23 | Z47: 24
A48: 9 | B48: =B6-B27 -> 0 | C48: 0 | D48: 0 | E48: 0 | F48: 39 | G48: 21 | H48: (13) | I48: (13) | J48: (23) | K48: (16) | L48: 9 | M48: 3 | N48: (12) | O48: 9 | P48: 1 | Q48: 3 | R48: (2) | S48: 4 | T48: 0 | U48: 10
A49: 10 | B49: =B7-B28 -> 0 | C49: 0 | D49: 0 | E49: 0 | F49: 0 | G49: 6 | H49: 3 | I49: (23) | J49: (19) | K49: (19) | L49: (27) | M49: 25 | N49: (2) | O49: (11) | P49: (1) | Q49: 2 | R49: (2) | S49: 1 | T49: 1 | U49: (66)
A50: 11 | B50: =B8-B29 -> 0 | C50: 0 | D50: 0 | E50: 0 | F50: 0 | G50: 0 | H50: 2 | I50: 1 | J50: (109) | K50: (54) | L50: (22) | M50: (26) | N50: 9 | O50: (4) | P50: (2) | Q50: (5) | R50: (2) | S50: 2 | T50: (1) | U50: (211)
A51: 12 | B51: =B9-B30 -> 0 | C51: 0 | D51: 0 | E51: 0 | F51: 0 | G51: 0 | H51: 0 | I51: 14 | J51: 7 | K51: (25) | L51: (97) | M51: (32) | N51: (20) | O51: (5) | P51: 0 | Q51: 5 | R51: 4 | S51: 2 | T51: 1 | U51: (146)
A52: 13 | B52: =B10-B31 -> 0 | C52: 0 | D52: 0 | E52: 0 | F52: 0 | G52: 0 | H52: 0 | I52: 0 | J52: 0 | K52: 4 | L52: (31) | M52: (11) | N52: 4 | O52: 7 | P52: 1 | Q52: 5 | R52: 4 | S52: 0 | T52: (3) | U52: (20)
A53: 14 | B53: =B11-B32 -> 0 | C53: 0 | D53: 0 | E53: 0 | F53: 0 | G53: 0 | H53: 0 | I53: 0 | J53: 0 | K53: (18) | L53: (1) | M53: 2 | N53: 18 | O53: (16) | P53: (3) | Q53: (7) | R53: (2) | S53: (2) | T53: (3) | U53: (32)
A54: 15 | B54: =B12-B33 -> 0 | C54: 0 | D54: 0 | E54: 0 | F54: 0 | G54: 0 | H54: 0 | I54: 0 | J54: 0 | K54: 0 | L54: 10 | M54: (3) | N54: (33) | O54: 3 | P54: 13 | Q54: 9 | R54: (25) | S54: 0 | T54: (3) | U54: (29)
A55: 16 | B55: =B13-B34 -> 0 | C55: 0 | D55: 0 | E55: 0 | F55: 0 | G55: 0 | H55: 0 | I55: 0 | J55: 0 | K55: 0 | L55: 0 | M55: 3 | N55: 36 | O55: 56 | P55: 5 | Q55: 1 | R55: 3 | S55: 5 | T55: (4) | U55: 105
A56: 17 | B56: =B14-B35 -> 0 | C56: 0 | D56: 0 | E56: 0 | F56: 0 | G56: 0 | H56: 0 | I56: 0 | J56: 0 | K56: 0 | L56: 0 | M56: 0 | N56: 16 | O56: 18 | P56: 38 | Q56: 63 | R56: 35 | S56: 10 | T56: (2) | U56: 178
A57: 18 | B57: =B15-B36 -> 0 | C57: 0 | D57: 0 | E57: 0 | F57: 0 | G57: 0 | H57: 0 | I57: 0 | J57: 0 | K57: 0 | L57: 0 | M57: 0 | N57: 0 | O57: 38 | P57: 20 | Q57: 70 | R57: 174 | S57: 19 | T57: (28) | U57: 293
A58: 19 | B58: =B16-B37 -> 0 | C58: 0 | D58: 0 | E58: 0 | F58: 0 | G58: 0 | H58: 0 | I58: 0 | J58: 0 | K58: 0 | L58: 0 | M58: 0 | N58: 0 | O58: 0 | P58: 7 | Q58: 18 | R58: 105 | S58: 42 | T58: (21) | U58: 151
A59: 20 | B59: =B17-B38 -> 0 | C59: 0 | D59: 0 | E59: 0 | F59: 0 | G59: 0 | H59: 0 | I59: 0 | J59: 0 | K59: 0 | L59: 0 | M59: 0 | N59: 0 | O59: 0 | P59: 0 | Q59: 4 | R59: 9 | S59: 44 | T59: (26) | U59: 31
A60: 21 | B60: =B18-B39 -> 0 | C60: 0 | D60: 0 | E60: 0 | F60: 0 | G60: 0 | H60: 0 | I60: 0 | J60: 0 | K60: 0 | L60: 0 | M60: 0 | N60: 0 | O60: 0 | P60: 0 | Q60: 0 | R60: (2) | S60: 13 | T60: (70) | U60: (59)
A61: 22 | B61: =B19-B40 -> 0 | C61: 0 | D61: 0 | E61: 0 | F61: 0 | G61: 0 | H61: 0 | I61: 0 | J61: 0 | K61: 0 | L61: 0 | M61: 0 | N61: 0 | O61: 0 | P61: 0 | Q61: 0 | R61: 0 | S61: 9 | T61: 0 | U61: 9
A62: 23 | B62: =B20-B41 -> 0 | C62: 0 | D62: 0 | E62: 0 | F62: 0 | G62: 0 | H62: 0 | I62: 0 | J62: 0 | K62: 0 | L62: 0 | M62: 0 | N62: 0 | O62: 0 | P62: 0 | Q62: 0 | R62: 0 | S62: 0 | T62: (2) | U62: (2)
A63: Total | B63: =B21-B42 -> 16 | C63: 113 | D63: 604 | E63: 477 | F63: 48 | G63: 39 | H63: (9) | I63: (25) | J63: (148) | K63: (129) | L63: (162) | M63: (37) | N63: 16 | O63: 95 | P63: 79 | Q63: 167 | R63: 300 | S63: 149 | T63: (161) | U63: 1,432
A64: PCT DIFF | B64: =B43 -> 5 | C64: =C43 -> 6 | D64: 7 | E64: 8 | F64: 9 | G64: 10 | H64: 11 | I64: 12 | J64: 13 | K64: 14 | L64: 15 | M64: 16 | N64: 17 | O64: 18 | P64: 19 | Q64: 20 | R64: 21 | S64: 22 | T64: 23
A65: =A44 -> 5 | B65: =B44/B2 -> 0.37 | C65: =C44/C2 -> 0.79 | D65: 0.65
A66: =A45 -> 6 | B66: =B45/B3 ->  | C66: 0.34 | D66: 0.40 | E66: 0.50 | F66: 1.00
A67: 7 | B67: =B46/B4 ->  | D67: 0.42 | E67: 0.25 | F67: 0
A68: 8 | B68: =B47/B5 ->  | E68: 0.19 | F68: 0.33 | G68: 0.20 | H68: (0.09) | I68: (4.00) | J68: (0.31) | K68: (0.06) | L68: (0.43) | M68: 0.31 | N68: 0.17 | O68: 0 | R68: 1.00
A69: 9 | B69: =B48/B6 ->  | F69: 0.10 | G69: 0.19 | H69: (0.05) | I69: (0.08) | J69: (0.07) | K69: (0.05) | L69: 0.04 | M69: 0.01 | N69: (0.14) | O69: 0.16 | P69: 0.09 | Q69: 0.38 | R69: (0.18) | S69: 1.00
A70: 10 | B70: =B49/B7 ->  | G70: 0.08 | H70: 0.10 | I70: (0.18) | J70: (0.04) | K70: (0.08) | L70: (0.15) | M70: 0.13 | N70: (0.03) | O70: (0.34) | P70: (1.00) | Q70: 0.33 | R70: (0.20) | S70: 0.50 | T70: 0.33
A71: 11 | B71: =B50/B8 ->  | H71: 0.05 | I71: 0.05 | J71: (0.28) | K71: (0.13) | L71: (0.13) | M71: (0.14) | N71: 0.14 | O71: (0.10) | P71: (1.00) | Q71: (1.25) | R71: (0.29) | S71: 1.00 | T71: (1.00)
A72: 12 | B72: =B51/B9 ->  | I72: 0.44 | J72: 0.11 | K72: (0.05) | L72: (0.32) | M72: (0.17) | N72: (0.28) | O72: (0.13) | P72: 0 | Q72: 0.45 | R72: 0.57 | S72: 0.67 | T72: 1.00
A73: 13 | B73: =B52/B10 ->  | J73: 0 | K73: 0.13 | L73: (0.26) | M73: (0.07) | N73: 0.15 | O73: 0.30 | P73: 0.33 | Q73: 1.00 | R73: 0.67 | S73: 0
A74: 14 | B74: =B53/B11 ->  | K74: (0.24) | L74: (0.02) | M74: 0.01 | N74: 0.11 | O74: (0.37) | P74: (0.75) | Q74: (1.40) | R74: (0.25)
A75: 15 | B75: =B54/B12 ->  | L75: 0.04 | M75: (0.01) | N75: (0.04) | O75: 0.01 | P75: 0.29 | Q75: 0.17 | R75: (0.68) | S75: 0 | T75: (0.75)
A76: 16 | B76: =B55/B13 ->  | M76: 0.02 | N76: 0.52 | O76: 0.18 | P76: 0.10 | Q76: 0.03 | R76: 0.09 | S76: 0.83 | T76: (1.33)
A77: 17 | B77: =B56/B14 ->  | N77: 0.06 | O77: 0.13 | P77: 0.17 | Q77: 0.24 | R77: 0.21 | S77: 0.23 | T77: (0.11)
A78: 18 | B78: =B57/B15 ->  | O78: 0.09 | P78: 0.30 | Q78: 0.10 | R78: 0.22 | S78: 0.22 | T78: (0.47)
A79: 19 | B79: =B58/B16 ->  | P79: 0.18 | Q79: 0.37 | R79: 0.21 | S79: 0.35 | T79: (0.95)
A80: 20 | B80: =B59/B17 ->  | Q80: 0.05 | R80: 0.11 | S80: 0.22 | T80: (0.21)
A81: 21 | B81: =B60/B18 ->  | R81: (0.01) | S81: 0.34 | T81: (0.25)
A82: 22 | B82: =B61/B19 ->  | S82: =S61/S19 -> 0.27 | T82: 0
A83: 23 | B83: =B62/B20 ->  | T83: (0.06)
